fUSD/lending_fUSD_20250617
["ID","MTS","AMOUNT","RATE_DAILY","PERIOD"]
[366278462,1750170668448,-490.0,0.00016767,2]
[366278463,1750170668457,-566.24,0.00016767,2]
[366278464,1750170668467,-490.0,0.00016767,2]
[366278465,1750170668476,-490.0,0.00016767,2]
[366278466,1750170668485,-490.0,0.00016767,2]
[366278467,1750170668495,-1084.71,0.00016767,2]
[366278468,1750170668505,-745.91,0.00016767,2]
[366278469,1750170668514,-490.0,0.00016767,2]
[366278470,1750170668525,-690.04,0.00016767,2]
[366278471,1750170668534,-2724.41,0.00016767,2]
[366278472,1750170668544,-3218.96,0.00016767,2]
[366278473,1750170668553,-855.14,0.00016767,2]
[366278474,1750170668563,-1509.12,0.00016767,2]
[366278475,1750170668572,-490.0,0.00016767,2]
[366278476,1750170668582,-490.0,0.00016767,2]
[366278477,1750170668593,-490.0,0.00016767,2]
[366278478,1750170668602,-490.0,0.00016767,2]
[366278479,1750170668611,-2725.08,0.00016767,2]
[366278480,1750170668621,-690.05,0.00016767,2]
[366278481,1750170668631,-280.85932147,0.00016767,2]
[366278482,1750170668641,-1429.63,0.00016767,2]
[366278483,1750170668651,-929.18,0.00016767,2]
[366278484,1750170668661,-490.0,0.00016767,2]
[366278485,1750170668670,-1076.9,0.00016767,2]
[366278486,1750170668679,-490.0,0.00016767,2]
[366278487,1750170668690,-1243.13,0.00016767,2]
[366278488,1750170668700,-490.0,0.00016767,2]
[366278489,1750170668710,-834.3,0.00016767,2]
[366278490,1750170668719,-590.64,0.00016767,2]
[366278491,1750170668729,-975.96,0.00016767,2]
[366278492,1750170668738,-502.22,0.00016767,2]
[366278493,1750170668748,-490.0,0.00016767,2]
[366278494,1750170668758,-490.0,0.00016767,2]
[366278495,1750170668768,-1997.32,0.00016767,2]
[366278496,1750170668780,-589.56,0.00016767,2]
[366278497,1750170668790,-490.0,0.00016767,2]
[366278498,1750170668800,-490.0,0.00016767,2]
[366278499,1750170668811,-1114.27,0.00016767,2]
[366278500,1750170668825,-21810.33,0.00016767,2]
[366278501,1750170668835,-490.0,0.00016767,2]
[366278502,1750170668845,-814.89,0.00016767,2]
[366278503,1750170668854,-490.0,0.00016767,2]
[366278504,1750170668865,-1678.38,0.00016767,2]
[366278505,1750170668875,-1160.08,0.00016767,2]
[366278506,1750170668885,-1605.95,0.00016767,2]
[366278507,1750170668894,-825.85,0.00016767,2]
[366278508,1750170668904,-2687.72,0.00016767,2]
[366278509,1750170668914,-490.0,0.00016767,2]
[366278510,1750170668923,-899.13,0.00016767,2]
[366278511,1750170668933,-490.0,0.00016767,2]
[366278512,1750170668942,-717.92,0.00016767,2]
[366278513,1750170668952,-490.0,0.00016767,2]
[366278514,1750170668962,-490.0,0.00016767,2]
[366278515,1750170668971,-490.0,0.00016767,2]
[366278516,1750170668980,-1728.83,0.00016767,2]
[366278517,1750170668990,-491.47,0.00016767,2]
[366278518,1750170669000,-1534.24,0.00016767,2]
[366278519,1750170669009,-490.0,0.00016767,2]
[366278520,1750170669019,-533.17,0.00016767,2]
[366278521,1750170669030,-987.31,0.00016767,2]
[366278522,1750170669040,-572.33,0.00016767,2]
[366278523,1750170669050,-4774.18,0.00016767,2]
[366278524,1750170669060,-490.0,0.00016767,2]
[366278525,1750170669069,-523.61,0.00016767,2]
[366278526,1750170669079,-503.34,0.00016767,2]
[366278527,1750170669089,-1894.01,0.00016767,2]
[366278528,1750170669098,-490.0,0.00016767,2]
[366278529,1750170669107,-14734.5,0.00016767,2]
[366278530,1750170669117,-4132.74,0.00016767,2]
[366278531,1750170669127,-749.53,0.00016767,2]
[366278532,1750170669136,-2264.38,0.00016767,2]
[366278533,1750170669146,-490.0,0.00016767,2]
[366278534,1750170669155,-490.0,0.00016767,2]
[366278535,1750170669165,-674.57,0.00016767,2]
[366278536,1750170669174,-490.0,0.00016767,2]
[366278537,1750170669184,-490.0,0.00016767,2]
[366278538,1750170669193,-490.0,0.00016767,2]
[366278539,1750170669203,-2109.78,0.00016767,2]
[366278540,1750170669212,-537.11,0.00016767,2]
[366278541,1750170669221,-490.0,0.00016767,2]
[366278542,1750170669231,-490.0,0.00016767,2]
[366278543,1750170669240,-1067.24,0.00016767,2]
[366278544,1750170669250,-847.23,0.00016767,2]
[366278545,1750170669260,-490.0,0.00016767,2]
[366278546,1750170669271,-490.0,0.00016767,2]
[366278547,1750170669282,-490.0,0.00016767,2]
[366278548,1750170669291,-3921.17,0.00016767,2]
[366278549,1750170669301,-490.0,0.00016767,2]
[366278550,1750170669311,-668.77,0.00016767,2]
[366278551,1750170669321,-490.0,0.00016767,2]
[366278552,1750170669331,-830.12,0.00016767,2]
[366278553,1750170669341,-1903.08,0.00016767,2]
[366278554,1750170669351,-2021.83,0.00016767,2]
[366278555,1750170669360,-974.47,0.00016767,2]
[366278556,1750170669370,-603.78,0.00016767,2]
[366278557,1750170669379,-490.0,0.00016767,2]
[366278558,1750170669389,-1057.67,0.00016767,2]
[366278559,1750170669398,-1882.55,0.00016767,2]
[366278560,1750170669408,-490.0,0.00016767,2]
[366278561,1750170669417,-2684.73,0.00016767,2]
[366278562,1750170669427,-1004.68,0.00016767,2]
[366278563,1750170669437,-1149.26,0.00016767,2]
[366278564,1750170669447,-977.57,0.00016767,2]
[366278565,1750170669456,-490.0,0.00016767,2]
[366278566,1750170669466,-490.0,0.00016767,2]
[366278567,1750170669475,-490.0,0.00016767,2]
[366278568,1750170669485,-1309.34,0.00016767,2]
[366278569,1750170669495,-490.0,0.00016767,2]
[366278570,1750170669506,-490.0,0.00016767,2]
[366278571,1750170669516,-2440.35,0.00016767,2]
[366278572,1750170669526,-490.0,0.00016767,2]
[366278573,1750170669536,-1015.57,0.00016767,2]
[366278574,1750170669546,-490.38,0.00016767,2]
[366278575,1750170669556,-1901.57,0.00016767,2]
[366278576,1750170669566,-1217.21,0.00016767,2]
[366278577,1750170669575,-978.67,0.00016767,2]
[366278578,1750170669585,-219.03311838,0.00016767,2]
[366278579,1750170669595,-850.14,0.00016767,2]
[366278580,1750170669605,-490.0,0.00016767,2]
[366278581,1750170669615,-490.0,0.00016767,2]
[366278582,1750170669624,-4902.88,0.00016767,2]
[366278583,1750170669634,-773.09,0.00016767,2]
[366278584,1750170669643,-490.0,0.00016767,2]
[366278585,1750170669653,-1033.47,0.00016767,2]
[366278586,1750170669662,-1461.21,0.00016767,2]
[366278587,1750170669672,-2702.17,0.00016767,2]
[366278588,1750170669681,-8008.83,0.00016767,2]
[366278589,1750170669691,-1459.18,0.00016767,2]
[366278590,1750170669700,-1121.61,0.00016767,2]
[366278591,1750170669711,-490.0,0.00016767,2]
[366278592,1750170669720,-3186.83,0.00016767,2]
[366278593,1750170669730,-670.32,0.00016767,2]
[366278594,1750170669741,-436.36,0.00016767,2]
[366278595,1750170669750,-796.53,0.00016767,2]
[366278596,1750170669761,-5432.41,0.00016767,2]
[366278597,1750170669770,-490.0,0.00016767,2]
[366278598,1750170669781,-831.33,0.00016767,2]
[366278599,1750170669791,-533.48,0.00016767,2]
[366278600,1750170669801,-490.0,0.00016767,2]
[366278601,1750170669811,-1424.93,0.00016767,2]
[366278602,1750170669825,-7941.25,0.00016767,2]
[366278603,1750170669835,-526.47,0.00016767,2]
[366278604,1750170669845,-1335.63,0.00016767,2]
[366278605,1750170669854,-490.0,0.00016767,2]
[366278606,1750170669865,-819.14,0.00016767,2]
[366278607,1750170669874,-490.0,0.00016767,2]
[366278608,1750170669884,-1635.89,0.00016767,2]
[366278609,1750170669894,-2218.05,0.00016767,2]
[366278610,1750170669904,-490.0,0.00016767,2]
[366278611,1750170669914,-5234.09,0.00016767,2]
[366278612,1750170669924,-490.0,0.00016767,2]
[366278613,1750170669933,-3053.69,0.00016767,2]
[366278614,1750170669943,-876.66,0.00016767,2]
[366278615,1750170669952,-490.0,0.00016767,2]
[366278616,1750170669962,-3589.54,0.00016767,2]
[366278617,1750170669972,-756.35,0.00016767,2]
[366278618,1750170669982,-490.0,0.00016767,2]
[366278619,1750170669991,-539.98,0.00016767,2]
[366278620,1750170670000,-490.0,0.00016767,2]
[366278621,1750170670009,-720.5,0.00016767,2]
[366278622,1750170670018,-490.0,0.00016767,2]
[366278623,1750170670029,-490.0,0.00016767,2]
[366278624,1750170670039,-490.0,0.00016767,2]
[366278625,1750170670048,-490.0,0.00016767,2]
[366278626,1750170670058,-490.0,0.00016767,2]
[366278627,1750170670068,-490.0,0.00016767,2]
[366278628,1750170670077,-490.0,0.00016767,2]
[366278629,1750170670088,-490.0,0.00016767,2]
[366278630,1750170670098,-708.06,0.00016767,2]
[366278631,1750170670107,-729.92,0.00016767,2]
[366278632,1750170670117,-490.0,0.00016767,2]
[366278633,1750170670126,-1046.68,0.00016767,2]
[366278634,1750170670136,-490.0,0.00016767,2]
[366278635,1750170670146,-739.64,0.00016767,2]
[366278636,1750170670155,-490.0,0.00016767,2]
[366278637,1750170670165,-490.0,0.00016767,2]
[366278638,1750170670174,-893.75,0.00016767,2]
[366278639,1750170670183,-573.73,0.00016767,2]
[366278640,1750170670193,-9847.01,0.00016767,2]
[366278641,1750170670202,-490.0,0.00016767,2]
[366278642,1750170670211,-601.08,0.00016767,2]
[366278643,1750170670221,-5561.31,0.00016767,2]
[366278644,1750170670231,-490.0,0.00016767,2]
[366278645,1750170670240,-490.0,0.00016767,2]
[366278646,1750170670249,-2699.9,0.00016767,2]
[366278647,1750170670259,-1418.78,0.00016767,2]
[366278648,1750170670269,-490.0,0.00016767,2]
[366278649,1750170670280,-3156.79,0.00016767,2]
[366278650,1750170670290,-490.0,0.00016767,2]
[366278651,1750170670300,-742.83,0.00016767,2]
[366278652,1750170670310,-2279.54,0.00016767,2]
[366278653,1750170670320,-490.0,0.00016767,2]
[366278654,1750170670330,-1360.94,0.00016767,2]
[366278655,1750170670340,-2363.44,0.00016767,2]
[366278656,1750170670350,-490.0,0.00016767,2]
[366278657,1750170670360,-490.0,0.00016767,2]
[366278658,1750170670369,-970.38,0.00016767,2]
[366278659,1750170670379,-490.0,0.00016767,2]
[366278660,1750170670389,-645.17,0.00016767,2]
[366278661,1750170670398,-1622.52,0.00016767,2]
[366278662,1750170670415,-863.82,0.00016767,2]
[366278663,1750170670424,-490.0,0.00016767,2]
[366278664,1750170670434,-490.0,0.00016767,2]
[366278665,1750170670444,-490.0,0.00016767,2]
[366278666,1750170670455,-555.04,0.00016767,2]
[366278667,1750170670465,-590.41,0.00016767,2]
[366278668,1750170670475,-490.0,0.00016767,2]
[366278669,1750170670485,-745.39,0.00016767,2]
[366278670,1750170670495,-505.99,0.00016767,2]
[366278671,1750170670505,-1245.11,0.00016767,2]
[366278672,1750170670514,-490.0,0.00016767,2]
[366278673,1750170670524,-2154.73,0.00016767,2]
[366278674,1750170670535,-490.0,0.00016767,2]
[366278675,1750170670545,-2838.93,0.00016767,2]
[366278676,1750170670554,-558.21,0.00016767,2]
[366278677,1750170670564,-2002.55,0.00016767,2]
[366278678,1750170670574,-490.0,0.00016767,2]
[366278679,1750170670585,-938.37,0.00016767,2]
[366278680,1750170670594,-490.0,0.00016767,2]
[366278681,1750170670605,-490.0,0.00016767,2]
[366278682,1750170670614,-490.0,0.00016767,2]
[366278683,1750170670625,-490.0,0.00016767,2]
[366278684,1750170670635,-3068.23,0.00016767,2]
[366278685,1750170670646,-490.0,0.00016767,2]
[366278686,1750170670656,-490.0,0.00016767,2]
[366278687,1750170670667,-787.19,0.00016767,2]
[366278688,1750170670677,-651.03,0.00016767,2]
[366278689,1750170670687,-3494.94,0.00016767,2]
[366278690,1750170670696,-490.0,0.00016767,2]
[366278691,1750170670706,-514.95,0.00016767,2]
[366278692,1750170670716,-739.16,0.00016767,2]
[366278693,1750170670726,-490.0,0.00016767,2]
[366278694,1750170670736,-632.54,0.00016767,2]
[366278695,1750170670746,-490.0,0.00016767,2]
[366278696,1750170670756,-1001.63,0.00016767,2]
[366278697,1750170670766,-952.13,0.00016767,2]
[366278698,1750170670777,-3765.36,0.00016767,2]
[366278699,1750170670787,-150.0,0.00016767,2]
[366278700,1750170670797,-150.0,0.00016767,2]
[366278701,1750170670807,-500.0,0.00016782,2]
[366278702,1750170670819,-150.0,0.00016782,2]
[366278703,1750170670829,-150.0,0.00016782,2]
[366278704,1750170670839,-150.0,0.00016782,2]
[366278705,1750170670849,-150.0,0.00016782,2]
[366278706,1750170670864,-150.0,0.00016782,2]
[366278707,1750170670874,-500.0,0.00016782,2]
[366278708,1750170670884,-1000.0,0.00016785,2]
[366278709,1750170670894,-1000.0,0.00016785,2]
[366278710,1750170670905,-1000.0,0.00016785,2]
[366278711,1750170670915,-1000.0,0.00016785,2]
[366278712,1750170670925,-1000.0,0.00016785,2]
[366278713,1750170670935,-916.37017785,0.00016785,2]
[366278714,1750170670946,-1000.0,0.00016785,2]
[366278715,1750170670956,-1000.0,0.00016785,2]
[366278716,1750170670966,-1000.0,0.00016785,2]
[366278717,1750170670976,-1000.0,0.00016785,2]
[366278718,1750170670986,-1000.0,0.00016785,2]
[366278719,1750170670996,-1000.0,0.00016785,2]
[366278720,1750170671006,-1000.0,0.00016785,2]
[366278721,1750170671016,-1000.0,0.00016785,2]
[366278722,1750170671027,-1000.0,0.00016785,2]
[366278723,1750170671036,-1000.0,0.00016785,2]
[366278724,1750170671046,-2000.0,0.00016795,2]
[366278725,1750170671056,-500.0,0.00016795,2]
[366278726,1750170671066,-2000.0,0.00016795,2]
[366278727,1750170671075,-2000.0,0.00016796,2]
[366278728,1750170671086,-2000.0,0.00016796,2]
[366278729,1750170671095,-500.0,0.00016796,2]
[366278730,1750170671105,-200.0,0.00016796,2]
[366278731,1750170671115,-4728.78961437,0.00016797,2]
[366278732,1750170671125,-162.70538326,0.00016798,2]
[366278733,1750170671135,-151.0,0.000168,2]
[366278734,1750170671145,-386.207424,0.000168,2]
[366278735,1750170671155,-386.207424,0.000168,2]
[366278736,1750170671165,-232.713536,0.000168,2]
[366278737,1750170671175,-232.713536,0.000168,2]
[366278738,1750170671184,-59579.10792617,0.000168,2]
[366278739,1750170671194,-400.0,0.000168,6]
[366278740,1750170671204,-500.0,0.0001681,2]
[366278741,1750170671214,-200.0,0.0001681,2]
[366278742,1750170671224,-200.0,0.0001681,2]
[366278743,1750170671234,-200.0,0.0001681,2]
[366278744,1750170671244,-200.0,0.0001681,2]
[366278745,1750170671254,-200.0,0.0001681,2]
[366278746,1750170671263,-540.0,0.0001681,2]
[366278747,1750170671273,-743.55982614,0.00016831,2]
[366278748,1750170671284,-18494.50618449,0.00016831,2]
[366278749,1750170671307,-334.0695195,0.00016831,2]
[366278750,1750170671318,-435.0,0.00016837,2]
[366278751,1750170671328,-150.0,0.00016854,2]
[366278752,1750170671338,-641.09364437,0.00016858,2]
[366278753,1750170671348,-400.0,0.000169,6]
[366278754,1750170671358,-1000.0,0.000169,2]
[366278755,1750170671368,-1000.0,0.000169,2]
[366278756,1750170671378,-1000.0,0.000169,2]
[366278757,1750170671388,-1000.0,0.000169,2]
[366278758,1750170671398,-250000.0,0.000169,2]
[366278759,1750170671409,-188.10693604,0.000169,2]
[366278760,1750170671419,-499.53618318,0.000169,2]
[366278761,1750170671429,-3868.53184348,0.000169,2]
[366278762,1750170671439,-173.207175,0.000169,2]
[366278763,1750170671449,-173.207175,0.000169,2]
[366278764,1750170671459,-151.0,0.000169,2]
[366278765,1750170671469,-151.0,0.000169,2]
[366278766,1750170671479,-174.04773,0.000169,2]
[366278767,1750170671489,-174.04773,0.000169,2]
[366278768,1750170671499,-206.0,0.00016913,2]
[366278769,1750170671509,-166.80932302,0.00016915,2]
[366278770,1750170671519,-1000.0,0.00016916,2]
[366278771,1750170671531,-1000.0,0.0001693,2]
[366278772,1750170671541,-1000.0,0.0001693,2]
[366278773,1750170671551,-170.08,0.0001693,2]
[366278774,1750170671562,-1172.14,0.0001693,2]
[366278775,1750170671573,-1172.14,0.0001693,2]
[366278776,1750170671583,-1172.14,0.0001693,2]
[366278777,1750170671594,-1172.14,0.0001693,2]
[366278778,1750170671604,-76252.6340536,0.0001693,2]
[366278779,1750170671615,-151.0,0.00016931,2]
[366278780,1750170671626,-151.0,0.00016931,2]
[366278781,1750170671637,-234.120292,0.00016931,2]
[366278782,1750170671647,-234.120292,0.00016931,2]
[366278783,1750170671657,-151.0,0.00016931,2]
[366278784,1750170671668,-151.0,0.00016931,2]
[366278785,1750170671679,-163.344123,0.00016931,2]
[366278786,1750170671689,-163.344123,0.00016931,2]
[366278787,1750170671699,-151.0,0.00016931,2]
[366278788,1750170671710,-151.0,0.00016931,2]
[366278789,1750170671720,-151.0,0.00016931,2]
[366278790,1750170671738,-292.789556,0.00016931,2]
[366278791,1750170671749,-151.0,0.00016931,2]
[366278792,1750170672062,-151.0,0.00016931,2]
[366278793,1750170672078,-151.0,0.00016931,2]
[366278794,1750170672089,-386.207424,0.00016931,2]
[366278795,1750170672099,-386.207419,0.00016931,2]
[366278796,1750170672110,-232.713536,0.00016931,2]
[366278797,1750170672121,-232.713536,0.00016931,2]
[366278798,1750170672131,-232.713536,0.00016931,2]
[366278799,1750170672142,-232.71353,0.00016931,2]
[366278800,1750170672153,-632.389838,0.00016931,2]
[366278801,1750170672164,-1459.068266,0.00016931,2]
[366278802,1750170672175,-157.599273,0.00016931,2]
[366278803,1750170672185,-151.0,0.00016931,2]
[366278804,1750170672196,-490.0,0.00016931,2]
[366278805,1750170672206,-490.0,0.00016931,2]
[366278806,1750170672216,-490.0,0.00016931,2]
[366278807,1750170672227,-490.0,0.00016931,2]
[366278808,1750170672237,-490.0,0.00016931,2]
[366278809,1750170672247,-490.0,0.00016931,2]
[366278810,1750170672258,-490.0,0.00016931,2]
[366278811,1750170672269,-490.0,0.00016931,2]
[366278812,1750170672280,-490.0,0.00016931,2]
[366278813,1750170672290,-250.0,0.00016931,2]
[366278814,1750170672300,-497.44,0.00016931,2]
[366278815,1750170672310,-490.0,0.00016931,2]
[366278816,1750170672321,-490.0,0.00016931,2]
[366278817,1750170672331,-490.0,0.00016931,2]
[366278818,1750170672341,-490.0,0.00016931,2]
[366278819,1750170672351,-490.0,0.00016931,2]
[366278820,1750170672361,-490.0,0.00016931,2]
[366278821,1750170672371,-490.0,0.00016931,2]
[366278822,1750170672382,-490.0,0.00016931,2]
[366278823,1750170672392,-490.0,0.00016931,2]
[366278824,1750170672403,-490.0,0.00016931,2]
[366278825,1750170672413,-490.0,0.00016931,2]
[366278826,1750170672423,-490.0,0.00016931,2]
[366278827,1750170672433,-211.60205581,0.00016931,2]
[366278828,1750170672443,-490.0,0.00016931,2]
[366278829,1750170672454,-490.0,0.00016931,2]
[366278830,1750170672464,-490.0,0.00016931,2]
[366278831,1750170672474,-490.0,0.00016931,2]
[366278832,1750170672484,-490.0,0.00016931,2]
[366278833,1750170672495,-490.0,0.00016931,2]
[366278834,1750170672505,-629.57,0.00016931,2]
[366278835,1750170672519,-490.0,0.00016931,2]
[366278836,1750170672531,-490.0,0.00016931,2]
[366278837,1750170672541,-490.0,0.00016931,2]
[366278838,1750170672552,-490.0,0.00016931,2]
[366278839,1750170672563,-490.0,0.00016931,2]
[366278840,1750170672574,-490.0,0.00016931,2]
[366278841,1750170672584,-490.0,0.00016931,2]
[366278842,1750170672594,-490.0,0.00016931,2]
[366278843,1750170672606,-490.0,0.00016931,2]
[366278844,1750170672616,-490.0,0.00016931,2]
[366278845,1750170672626,-490.0,0.00016931,2]
[366278846,1750170672636,-449.41506466,0.00016931,2]
[366278847,1750170672649,-490.0,0.00016931,2]
[366278848,1750170672659,-490.0,0.00016931,2]
[366278849,1750170672669,-490.0,0.00016931,2]
[366278850,1750170672679,-490.0,0.00016931,2]
[366278851,1750170672689,-875.48,0.00016931,2]
[366278852,1750170672699,-490.0,0.00016931,2]
[366278853,1750170672710,-490.0,0.00016931,2]
[366278854,1750170672721,-490.0,0.00016931,2]
[366278855,1750170672731,-635.61,0.00016931,2]
[366278856,1750170672748,-490.0,0.00016931,2]
[366278857,1750170672758,-490.0,0.00016931,2]
[366278858,1750170672768,-556.36,0.00016931,2]
[366278859,1750170672778,-490.0,0.00016931,2]
[366278860,1750170672790,-490.0,0.00016931,2]
[366278861,1750170672802,-575.14,0.00016931,2]
[366278862,1750170672816,-490.0,0.00016931,2]
[366278863,1750170672831,-205.6860565,0.00016931,2]
[366278864,1750170672842,-490.0,0.00016931,2]
[366278865,1750170672856,-490.0,0.00016931,2]
[366278866,1750170672867,-490.0,0.00016931,2]
[366278867,1750170672878,-490.0,0.00016931,2]
[366278868,1750170672889,-490.0,0.00016931,2]
[366278869,1750170672901,-490.0,0.00016931,2]
[366278870,1750170672913,-490.0,0.00016931,2]
[366278871,1750170672924,-490.0,0.00016931,2]
[366278872,1750170672934,-490.0,0.00016931,2]
[366278873,1750170672945,-490.0,0.00016931,2]
[366278874,1750170672955,-490.0,0.00016931,2]
[366278875,1750170672978,-490.0,0.00016931,2]
[366278876,1750170672990,-490.0,0.00016931,2]
[366278877,1750170673001,-490.0,0.00016931,2]
[366278878,1750170673012,-490.0,0.00016931,2]
[366278879,1750170673023,-490.0,0.00016931,2]
[366278880,1750170673035,-490.0,0.00016931,2]
[366278881,1750170673047,-426.68782766,0.00016931,2]
[366278882,1750170673059,-490.0,0.00016931,2]
[366278883,1750170673070,-490.0,0.00016931,2]
[366278884,1750170673081,-490.0,0.00016931,2]
[366278885,1750170673092,-490.0,0.00016931,2]
[366278886,1750170673104,-490.0,0.00016931,2]
[366278887,1750170673115,-490.0,0.00016931,2]
[366278888,1750170673127,-1537.87,0.00016931,2]
[366278889,1750170673138,-490.0,0.00016931,2]
[366278890,1750170673149,-490.0,0.00016931,2]
[366278891,1750170673160,-490.0,0.00016931,2]
[366278892,1750170673172,-490.0,0.00016931,2]
[366278893,1750170673184,-1091.44,0.00016931,2]
[366278894,1750170673195,-490.0,0.00016931,2]
[366278895,1750170673206,-432.78743232,0.00016931,2]
[366278896,1750170673217,-490.0,0.00016931,2]
[366278897,1750170673228,-490.0,0.00016931,2]
[366278898,1750170673239,-490.0,0.00016931,2]
[366278899,1750170673251,-495.94220166,0.00016931,2]
[366278900,1750170673262,-490.0,0.00016931,2]
[366278901,1750170673274,-505.19,0.00016931,2]
[366278902,1750170673286,-669.29,0.00016931,2]
[366278903,1750170673298,-490.0,0.00016931,2]
[366278904,1750170673309,-542.06942945,0.00016931,2]
[366278905,1750170673321,-760.91,0.00016931,2]
[366278906,1750170673332,-490.0,0.00016931,2]
[366278907,1750170673343,-712.45,0.00016931,2]
[366278908,1750170673354,-490.0,0.00016931,2]
[366278909,1750170673365,-490.0,0.00016931,2]
[366278910,1750170673375,-185.9821133,0.00016931,2]
[366278911,1750170673386,-490.0,0.00016931,2]
[366278912,1750170673403,-490.0,0.00016931,2]
[366278913,1750170673414,-490.0,0.00016931,2]
[366278914,1750170673426,-490.0,0.00016931,2]
[366278915,1750170673438,-490.0,0.00016931,2]
[366278916,1750170673449,-490.0,0.00016931,2]
[366278917,1750170673460,-1903.1,0.00016931,2]
[366278918,1750170673474,-490.0,0.00016931,2]
[366278919,1750170673485,-490.0,0.00016931,2]
[366278920,1750170673498,-363.89944984,0.00016931,2]
[366278921,1750170673509,-490.0,0.00016931,2]
[366278922,1750170673521,-1279.76,0.00016931,2]
[366278923,1750170673533,-490.0,0.00016931,2]
[366278924,1750170673545,-547.2,0.00016931,2]
[366278925,1750170673556,-490.0,0.00016931,2]
[366278926,1750170673567,-455.40912377,0.00016931,2]
[366278927,1750170673578,-798.01,0.00016931,2]
[366278928,1750170673590,-490.0,0.00016931,2]
[366278929,1750170673602,-1856.79,0.00016931,2]
[366278930,1750170673613,-490.0,0.00016931,2]
[366278931,1750170673624,-1065.52,0.00016931,2]
[366278932,1750170673635,-490.0,0.00016931,2]
[366278933,1750170673647,-490.0,0.00016931,2]
[366278934,1750170673659,-490.0,0.00016931,2]
[366278935,1750170673670,-1000.0,0.00016931,2]
[366278936,1750170673682,-490.0,0.00016931,2]
[366278937,1750170673693,-490.0,0.00016931,2]
[366278938,1750170673704,-490.0,0.00016931,2]
[366278939,1750170673715,-875.88,0.00016931,2]
[366278940,1750170673726,-490.0,0.00016931,2]
[366278941,1750170673737,-490.0,0.00016931,2]
[366278942,1750170673748,-607.79,0.00016931,2]
[366278943,1750170673758,-536.32,0.00016931,2]
[366278944,1750170673769,-490.0,0.00016931,2]
[366278945,1750170673780,-490.0,0.00016931,2]
[366278946,1750170673792,-622.03,0.00016931,2]
[366278947,1750170673803,-490.0,0.00016931,2]
[366278948,1750170673817,-775.16,0.00016931,2]
[366278949,1750170673827,-490.0,0.00016931,2]
[366278950,1750170673838,-490.0,0.00016931,2]
[366278951,1750170673848,-490.0,0.00016931,2]
[366278952,1750170673859,-372.85,0.00016931,2]
[366278953,1750170673869,-776.96,0.00016931,2]
[366278954,1750170673880,-618.5386096,0.00016931,2]
[366278955,1750170673892,-490.0,0.00016931,2]
[366278956,1750170673903,-490.0,0.00016931,2]
[366278957,1750170673914,-490.0,0.00016931,2]
[366278958,1750170673924,-913.86,0.00016931,2]
[366278959,1750170673935,-490.0,0.00016931,2]
[366278960,1750170673946,-1037.49,0.00016931,2]
[366278961,1750170673957,-490.0,0.00016931,2]